Amount (�),Supplier,Service ,Division,Cost Centre,Cost Centre Code,Expenditure Category,Date Paid,Type,Transaction Reference,Dept
1045,Advanced Business Solutions,Capital Expenditure,Transformation & Innovation,Abs Upgrade,601,Legal & Professional Services,17/11/2017,Supplies & Services,80564,Capital Expenditure
525.91,British Gas Business,Communities,Community Development,Alford Road,8940,Gas,21/12/2017,Premises Related Expenditure,81644,Communities
135,Access Doors,Communities,Community Development,Alford Road,8940,Service Maintenance Contracts,11/10/2017,Premises Related Expenditure,78822,Communities
40000,Civica Uk Ltd,Capital Expenditure,Transformation & Innovation,Applications/Apps,605,Software,21/11/2017,Supplies & Services,80544,Capital Expenditure
7000,Idox Software Limited,Capital Expenditure,Transformation & Innovation,Applications/Apps,605,Software,17/11/2017,Supplies & Services,80694,Capital Expenditure
800,Maltby & Company,Capital Expenditure,Transformation & Innovation,Arena Car Park,336,Contractors-Third Party,24/11/2017,Third Party Payments,80258,Capital Expenditure
7988,Ener -G Combined Power Limited,Transformation,Property Services,Arena Civic Centre,4718,Service Maintenance Contracts,05/10/2017,Premises Related Expenditure,78491,Transformation
2960,Nuthall Electrical Services Ltd,Transformation,Property Services,Arena Civic Centre,4718,Responsive Works - Buildings,24/11/2017,Premises Related Expenditure,81087,Transformation
2958.94,Temperature Control Limited,Transformation,Property Services,Arena Civic Centre,4718,Service Maintenance Contracts,12/12/2017,Premises Related Expenditure,81181,Transformation
1926,Mk Door Systems Ltd T/A Style Midlands,Transformation,Property Services,Arena Civic Centre,4718,Service Maintenance Contracts,05/10/2017,Premises Related Expenditure,78668,Transformation
1195,Thyssenkrupp Encasa,Transformation,Property Services,Arena Civic Centre,4718,Service Maintenance Contracts,06/12/2017,Premises Related Expenditure,80546,Transformation
620.95,Nottingham County Council,Transformation,Property Services,Arena Civic Centre,4718,Grounds Maintenance,21/12/2017,Premises Related Expenditure,81255,Transformation
619.5,Magpie Security Limited,Transformation,Property Services,Arena Civic Centre,4718,Other Miscellaneous Expenses,05/12/2017,Supplies & Services,81227,Transformation
617.92,Temperature Control Limited,Transformation,Property Services,Arena Civic Centre,4718,Responsive Works-Fixed Plant,27/11/2017,Premises Related Expenditure,80778,Transformation
12000,Via East Midlands,Capital Expenditure,Neighbourhoods,Arena Development,415,Grants,05/10/2017,Supplies & Services,79161,Capital Expenditure
6686,M & G Olympic Products Ltd,Capital Expenditure,Neighbourhoods,Arena Development,415,Contractors-Third Party,06/10/2017,Third Party Payments,79489,Capital Expenditure
6130,Sureguard Window Films,Capital Expenditure,Neighbourhoods,Arena Development,415,Contractors-Third Party,24/11/2017,Third Party Payments,80513,Capital Expenditure
3476.5,Live Trakway,Communities,Community Development,Arts,1550,Projects & Activities,21/12/2017,Supplies & Services,81755,Communities
2565,Mtm Presentations Ltd,Communities,Community Development,Arts,1550,Projects & Activities,21/11/2017,Supplies & Services,80725,Communities
2300,Events Of Excellence,Communities,Community Development,Arts,1550,Projects & Activities,13/10/2017,Supplies & Services,79331,Communities
1600,The Marquee Company Limited,Communities,Community Development,Arts,1550,Projects & Activities,21/12/2017,Supplies & Services,81331,Communities
1334.67,Live And Local Limited,Communities,Community Development,Arts,1550,Projects & Activities,05/12/2017,Supplies & Services,81263,Communities
1000,Darren Bowles,Communities,Community Development,Arts,1550,Projects & Activities,06/12/2017,Supplies & Services,80946,Communities
850,Darren Bowles,Communities,Community Development,Arts,1550,Projects & Activities,25/10/2017,Supplies & Services,80060,Communities
664,Traffic Management Svs Ltd,Communities,Community Development,Arts,1550,Projects & Activities,11/10/2017,Supplies & Services,79048,Communities
625,Bounceabout,Communities,Community Development,Arts,1550,Projects & Activities,05/10/2017,Supplies & Services,79339,Communities
611,Site Rescue (Leeds Office),Communities,Community Development,Arts,1550,Projects & Activities,18/10/2017,Supplies & Services,79084,Communities
550,Clip Clop Pony Riides,Communities,Community Development,Arts,1550,Projects & Activities,21/12/2017,Supplies & Services,81322,Communities
511.5,The Marquee Company Limited,Communities,Community Development,Arts,1550,Projects & Activities,05/12/2017,Supplies & Services,81201,Communities
962.88,Water Plus,Transformation,Property Services,Bingham Market Stalls,1880,Water Charges,17/11/2017,Premises Related Expenditure,80510,Transformation
836.47,East Midlands Markets And Events Ltd,Transformation,Property Services,Bingham Market Stalls,1880,Legal & Professional Services,24/11/2017,Supplies & Services,80571,Transformation
750,Nottinghamshire In Focus,Transformation,Property Services,Bingham Market Stalls,1880,Advertising,13/10/2017,Supplies & Services,79355,Transformation
727.9,Maltby & Company,Transformation,Property Services,Bingham Market Stalls,1880,Responsive Works - Buildings,02/11/2017,Premises Related Expenditure,79521,Transformation
600,Nottinghamshire In Focus,Transformation,Property Services,Bingham Market Stalls,1880,Advertising,21/12/2017,Supplies & Services,81543,Transformation
572,East Midlands Markets And Events Ltd,Transformation,Property Services,Bingham Market Stalls,1880,Legal & Professional Services,15/12/2017,Supplies & Services,81505,Transformation
564,East Midlands Markets And Events Ltd,Transformation,Property Services,Bingham Market Stalls,1880,Legal & Professional Services,10/11/2017,Supplies & Services,77043,Transformation
532,East Midlands Markets And Events Ltd,Transformation,Property Services,Bingham Market Stalls,1880,Legal & Professional Services,10/11/2017,Supplies & Services,80007,Transformation
30,East Midlands Markets And Events Ltd,Transformation,Property Services,Bingham Market Stalls,1880,Responsive Works - Buildings,15/12/2017,Premises Related Expenditure,81505,Transformation
5244.6,"Knight, Kavanagh And Page Ltd",Capital Expenditure,Neighbourhoods,Blc Enhancements,417,Legal & Professional Services,05/12/2017,Supplies & Services,81177,Capital Expenditure
2966.07,Electrical Testing Ltd,Capital Expenditure,Neighbourhoods,Blc Enhancements,417,Contractors-Third Party,21/12/2017,Third Party Payments,81092,Capital Expenditure
1264,Securus Group Ltd,Capital Expenditure,Neighbourhoods,Blc Enhancements,417,Contractors-Third Party,24/11/2017,Third Party Payments,81115,Capital Expenditure
716,Securus Group Ltd,Capital Expenditure,Neighbourhoods,Blc Enhancements,417,Contractors-Third Party,24/11/2017,Third Party Payments,81117,Capital Expenditure
664.67,Elcomponent Ltd,Capital Expenditure,Neighbourhoods,Blc Enhancements,417,Contractors-Third Party,17/11/2017,Third Party Payments,80474,Capital Expenditure
1896,Gedling Borough Council,Finance & Corporate Services,Democratic Services,Borough Council Elections,1021,Contractors-Supplies & Servs,13/10/2017,Supplies & Services,79428,Finance & Corporate Services
1526,Print Image Network Ltd,Finance & Corporate Services,Democratic Services,Borough Council Elections,1021,External Printing,10/11/2017,Supplies & Services,80161,Finance & Corporate Services
751,Print Image Network Ltd,Finance & Corporate Services,Democratic Services,Borough Council Elections,1021,External Printing,10/11/2017,Supplies & Services,80168,Finance & Corporate Services
405.42,Royal Mail Group Ltd,Finance & Corporate Services,Democratic Services,Borough Council Elections,1021,Postages,05/12/2017,Supplies & Services,80910,Finance & Corporate Services
96,Gedling Borough Council,Finance & Corporate Services,Democratic Services,Borough Council Elections,1021,Other Miscellaneous Expenses,15/12/2017,Supplies & Services,81684,Finance & Corporate Services
1515,Freeth Cartwright Llp,Transformation,Property Services,Bridgford Hall,1883,Legal & Professional Services,05/10/2017,Supplies & Services,78469,Transformation
3355,Purcell Miller Tritton Llp,Capital Expenditure,Transformation & Innovation,Bridgford Hall Refurbishment,382,Legal & Professional Services,05/12/2017,Supplies & Services,81206,Capital Expenditure
1200,Nottinghamshire County Council,Capital Expenditure,Transformation & Innovation,Bridgford Hall Refurbishment,382,Contractors-Third Party,25/10/2017,Third Party Payments,79285,Capital Expenditure
800,I R Ward,Communities,Community Development,Bridgford Hall Renovation Hlf,8928,Projects & Activities,02/11/2017,Supplies & Services,80164,Communities
745,Birchover Residences Limited,Communities,Community Development,Bridgford Hall Renovation Hlf,8928,Projects & Activities,18/10/2017,Supplies & Services,79697,Communities
545,South Notts Fabrications Ltd,Communities,Community Development,Bridgford Park,8927,Responsive Works - Buildings,12/12/2017,Premises Related Expenditure,80560,Communities
1260,Parkwood Community Leisure,Transformation,Bsu,Business Support Unit,4805,Legal & Professional Services,18/10/2017,Supplies & Services,79374,Transformation
687.18,Automail Envelopes Ltd,Transformation,Bsu,Business Support Unit,4805,Stationery,21/11/2017,Supplies & Services,79996,Transformation
546,James Button & Co,Transformation,Bsu,Business Support Unit,4805,Training Expenses,06/12/2017,Employee Related Expenditure,79027,Transformation
3729,Keyworth & District Community Concern,Capital Expenditure,Communties,Capital Grant Funding,651,Grants,13/10/2017,Supplies & Services,79505,Capital Expenditure
3729,Keyworth & District Community Concern,Capital Expenditure,Communties,Capital Grant Funding,651,Grants,21/12/2017,Supplies & Services,81326,Capital Expenditure
11430,Broxtowe Borough Council,Capital Expenditure,Neighbourhoods,Car Park Pay & Display Machs,373,Other Equipment/Materials,21/11/2017,Supplies & Services,80498,Capital Expenditure
3928.62,Broxtowe Borough Council,Capital Expenditure,Neighbourhoods,Car Park Pay & Display Machs,373,Other Equipment/Materials,02/11/2017,Supplies & Services,80240,Capital Expenditure
3509.68,Broxtowe Borough Council,Neighbourhoods,Leisure Contracts & Car Parks,Car Parks,1900,Maintenance Contracts - S&S,12/12/2017,Supplies & Services,80241,Neighbourhoods
1859.52,Nsl Limited,Neighbourhoods,Leisure Contracts & Car Parks,Car Parks,1900,Legal & Professional Services,05/12/2017,Supplies & Services,80431,Neighbourhoods
1850.95,Nsl Limited,Neighbourhoods,Leisure Contracts & Car Parks,Car Parks,1900,Legal & Professional Services,18/10/2017,Supplies & Services,79486,Neighbourhoods
1708.36,Nsl Limited,Neighbourhoods,Leisure Contracts & Car Parks,Car Parks,1900,Legal & Professional Services,21/12/2017,Supplies & Services,81312,Neighbourhoods
1397.28,Edf Energy,Neighbourhoods,Leisure Contracts & Car Parks,Car Parks,1900,Electricity,21/11/2017,Premises Related Expenditure,80760,Neighbourhoods
962.88,Water Plus,Neighbourhoods,Leisure Contracts & Car Parks,Car Parks,1900,Water Charges,17/11/2017,Premises Related Expenditure,80489,Neighbourhoods
962.88,Water Plus,Neighbourhoods,Leisure Contracts & Car Parks,Car Parks,1900,Water Charges,17/11/2017,Premises Related Expenditure,80493,Neighbourhoods
582,Clearway (Midlands) Ltd,Neighbourhoods,Leisure Contracts & Car Parks,Car Parks,1900,Responsive Works - Buildings,12/12/2017,Premises Related Expenditure,80484,Neighbourhoods
2325.43,Royal Mail Group Ltd,Transformation,Bsu,Central Mail,4871,Postages,02/11/2017,Supplies & Services,79701,Transformation
2282.67,Royal Mail Group Ltd,Transformation,Bsu,Central Mail,4871,Postages,02/11/2017,Supplies & Services,79933,Transformation
2282.16,Royal Mail Group Ltd,Transformation,Bsu,Central Mail,4871,Postages,05/12/2017,Supplies & Services,80794,Transformation
2208.99,Royal Mail Group Ltd,Transformation,Bsu,Central Mail,4871,Postages,17/11/2017,Supplies & Services,80320,Transformation
1615.28,Royal Mail Group Ltd,Transformation,Bsu,Central Mail,4871,Postages,15/12/2017,Supplies & Services,81219,Transformation
1149.22,Royal Mail Group Ltd,Transformation,Bsu,Central Mail,4871,Postages,05/10/2017,Supplies & Services,79261,Transformation
1146.54,Royal Mail Group Ltd,Transformation,Bsu,Central Mail,4871,Postages,13/10/2017,Supplies & Services,79357,Transformation
1132.63,Royal Mail Group Ltd,Transformation,Bsu,Central Mail,4871,Postages,21/12/2017,Supplies & Services,81420,Transformation
1071.76,Royal Mail Group Ltd,Transformation,Bsu,Central Mail,4871,Postages,24/11/2017,Supplies & Services,80575,Transformation
1000,Royal Mail Group Ltd,Transformation,Bsu,Central Mail,4871,Postages,17/11/2017,Supplies & Services,80432,Transformation
933.6,Royal Mail Group Ltd,Transformation,Bsu,Central Mail,4871,Postages,21/12/2017,Supplies & Services,81696,Transformation
560.89,Royal Mail Group Ltd,Transformation,Bsu,Central Mail,4871,Postages,14/11/2017,Supplies & Services,80244,Transformation
533.13,Royal Mail Group Ltd,Transformation,Bsu,Central Mail,4871,Postages,10/11/2017,Supplies & Services,80209,Transformation
95,Royal Mail Group Ltd,Transformation,Bsu,Central Mail,4871,Licences,05/12/2017,Supplies & Services,80910,Transformation
1500,Nuthall Electrical Services Ltd,Transformation,Property Services,"Chapel Lane, Bingham",4799,Contractors-Third Party,15/12/2017,Third Party Payments,81610,Transformation
1440,Nuthall Electrical Services Ltd,Transformation,Property Services,"Chapel Lane, Bingham",4799,Responsive Works - Buildings,15/12/2017,Premises Related Expenditure,81612,Transformation
4650,Civica Uk Ltd,Neighbourhoods,Strategic Housing,Choice Based Lettings,1107,Software,24/11/2017,Supplies & Services,80207,Neighbourhoods
1250.69,Corona Energy Retail 3 Ltd,Transformation,Property Services,Civic Centre Building,4719,Gas,05/10/2017,Premises Related Expenditure,79188,Transformation
2090,Advanced Business Solutions,Capital Expenditure,Transformation & Innovation,Collaborative Planning,609,Software,02/11/2017,Supplies & Services,79645,Capital Expenditure
4000,Local World Ltd,Communities,Community Development,Community Development,1581,Projects & Activities,05/12/2017,Supplies & Services,80973,Communities
1354,Jne Security Ltd,Neighbourhoods,Environmental Health,Community Safety,1598,Projects & Activities,25/10/2017,Supplies & Services,79360,Neighbourhoods
241.04,Local World Ltd,Communities,Planning & Growth,Conservation,1171,Advertising,21/12/2017,Supplies & Services,81284,Communities
169.72,Local World Ltd,Communities,Planning & Growth,Conservation,1171,Advertising,25/10/2017,Supplies & Services,79478,Communities
153.68,Local World Ltd,Communities,Planning & Growth,Conservation,1171,Advertising,21/12/2017,Supplies & Services,81280,Communities
142.36,Local World Ltd,Communities,Planning & Growth,Conservation,1171,Advertising,25/10/2017,Supplies & Services,79477,Communities
127.13,Local World Ltd,Communities,Planning & Growth,Conservation,1171,Advertising,17/11/2017,Supplies & Services,80421,Communities
106.54,Local World Ltd,Communities,Planning & Growth,Conservation,1171,Advertising,21/12/2017,Supplies & Services,81285,Communities
103.32,Local World Ltd,Communities,Planning & Growth,Conservation,1171,Advertising,21/12/2017,Supplies & Services,81282,Communities
98.53,Local World Ltd,Communities,Planning & Growth,Conservation,1171,Advertising,17/11/2017,Supplies & Services,80425,Communities
96.43,Local World Ltd,Communities,Planning & Growth,Conservation,1171,Advertising,25/10/2017,Supplies & Services,79480,Communities
7000,Learning Pool Ltd,Transformation,Human Resources,Corporate Training,4893,Training Expenses,02/11/2017,Employee Related Expenditure,80004,Transformation
2500,Sarah Mcnicol Coaching,Transformation,Human Resources,Corporate Training,4893,Training Expenses,11/10/2017,Employee Related Expenditure,79502,Transformation
1500,East Midlands Councils,Transformation,Human Resources,Corporate Training,4893,Employee Advertising,21/11/2017,Employee Related Expenditure,80815,Transformation
789,The Knowledge Academy Ltd,Transformation,Human Resources,Corporate Training,4893,Training Expenses,25/10/2017,Employee Related Expenditure,80063,Transformation
7625,A R Signs Ltd,Capital Expenditure,Transformation & Innovation,Cotgrave Employment Land,371,Legal & Professional Services,02/11/2017,Supplies & Services,79870,Capital Expenditure
1137.5,Fisher Hargreaves Proctor,Capital Expenditure,Transformation & Innovation,Cotgrave Employment Land,371,Legal & Professional Services,25/10/2017,Supplies & Services,80031,Capital Expenditure
1137.5,Fisher Hargreaves Proctor,Capital Expenditure,Transformation & Innovation,Cotgrave Employment Land,371,Legal & Professional Services,25/10/2017,Supplies & Services,80040,Capital Expenditure
975,Fisher Hargreaves Proctor,Capital Expenditure,Transformation & Innovation,Cotgrave Employment Land,371,Legal & Professional Services,25/10/2017,Supplies & Services,80045,Capital Expenditure
975,Fisher Hargreaves Proctor,Capital Expenditure,Transformation & Innovation,Cotgrave Employment Land,371,Legal & Professional Services,25/10/2017,Supplies & Services,80046,Capital Expenditure
744.5,Fisher Hargreaves Proctor,Capital Expenditure,Transformation & Innovation,Cotgrave Employment Land,371,Legal & Professional Services,25/10/2017,Supplies & Services,80029,Capital Expenditure
570,A R Signs Ltd,Capital Expenditure,Transformation & Innovation,Cotgrave Employment Land,371,Legal & Professional Services,12/12/2017,Supplies & Services,81192,Capital Expenditure
562.5,Fisher Hargreaves Proctor,Capital Expenditure,Transformation & Innovation,Cotgrave Employment Land,371,Legal & Professional Services,25/10/2017,Supplies & Services,80042,Capital Expenditure
112556,A & S Enterprises Limited,Capital Expenditure,Transformation & Innovation,Cotgrave Masterplan,303,Legal & Professional Services,14/11/2017,Supplies & Services,80451,Capital Expenditure
87265,A & S Enterprises Limited,Capital Expenditure,Transformation & Innovation,Cotgrave Masterplan,303,Legal & Professional Services,12/12/2017,Supplies & Services,81504,Capital Expenditure
67925,A & S Enterprises Limited,Capital Expenditure,Transformation & Innovation,Cotgrave Masterplan,303,Legal & Professional Services,11/10/2017,Supplies & Services,79491,Capital Expenditure
2519,A R Signs Ltd,Capital Expenditure,Transformation & Innovation,Cotgrave Masterplan,303,Legal & Professional Services,02/11/2017,Supplies & Services,79694,Capital Expenditure
2250,Total Reclaims Demolition Ltd,Capital Expenditure,Transformation & Innovation,Cotgrave Masterplan,303,Legal & Professional Services,18/10/2017,Supplies & Services,79554,Capital Expenditure
2000,Bentley Project Management,Capital Expenditure,Transformation & Innovation,Cotgrave Masterplan,303,Legal & Professional Services,18/10/2017,Supplies & Services,79516,Capital Expenditure
2000,Bentley Project Management,Capital Expenditure,Transformation & Innovation,Cotgrave Masterplan,303,Legal & Professional Services,17/11/2017,Supplies & Services,80416,Capital Expenditure
2000,Bentley Project Management,Capital Expenditure,Transformation & Innovation,Cotgrave Masterplan,303,Legal & Professional Services,21/12/2017,Supplies & Services,81275,Capital Expenditure
1800,Mascot Management Ltd,Capital Expenditure,Transformation & Innovation,Cotgrave Masterplan,303,Legal & Professional Services,21/12/2017,Supplies & Services,81423,Capital Expenditure
1557,Ep Consulting Building Services Engineers,Capital Expenditure,Transformation & Innovation,Cotgrave Masterplan,303,Legal & Professional Services,06/12/2017,Supplies & Services,81232,Capital Expenditure
1500,Bsp Consulting,Capital Expenditure,Transformation & Innovation,Cotgrave Masterplan,303,Legal & Professional Services,18/10/2017,Supplies & Services,79526,Capital Expenditure
1500,Bsp Consulting,Capital Expenditure,Transformation & Innovation,Cotgrave Masterplan,303,Legal & Professional Services,17/11/2017,Supplies & Services,80322,Capital Expenditure
1500,Bsp Consulting,Capital Expenditure,Transformation & Innovation,Cotgrave Masterplan,303,Legal & Professional Services,21/12/2017,Supplies & Services,81277,Capital Expenditure
585,Freeth Cartwright Llp,Capital Expenditure,Transformation & Innovation,Cotgrave Masterplan,303,Legal & Professional Services,10/11/2017,Supplies & Services,80540,Capital Expenditure
684.6,Cotgrave Town Council,Transformation,Economic Regeneration,Cotgrave Precinct,1885,Grounds Maintenance,05/10/2017,Premises Related Expenditure,78897,Transformation
684.6,Cotgrave Town Council,Transformation,Economic Regeneration,Cotgrave Precinct,1885,Grounds Maintenance,21/12/2017,Premises Related Expenditure,81327,Transformation
1825,Capita Software Services,Finance & Corporate Services,Revenues & Benefits,Council Tax,1045,Other Government Grants,12/12/2017,Income,80521,Finance & Corporate Services
2637.4,British Gas Business,Neighbourhoods,Waste & Fleet Management,Depot,4001,Electricity,21/12/2017,Premises Related Expenditure,81676,Neighbourhoods
1963.13,British Gas Business,Neighbourhoods,Waste & Fleet Management,Depot,4001,Electricity,21/11/2017,Premises Related Expenditure,80535,Neighbourhoods
1950,Dta Electrical,Neighbourhoods,Waste & Fleet Management,Depot,4001,Responsive Works - Buildings,17/11/2017,Premises Related Expenditure,80779,Neighbourhoods
1824.58,Water Plus,Neighbourhoods,Waste & Fleet Management,Depot,4001,Sewerage & Environmental,21/11/2017,Premises Related Expenditure,80761,Neighbourhoods
1428.35,British Gas Business,Neighbourhoods,Waste & Fleet Management,Depot,4001,Electricity,27/10/2017,Premises Related Expenditure,79656,Neighbourhoods
1137.25,Adt Fire And Security Plc,Neighbourhoods,Waste & Fleet Management,Depot,4001,Service Maintenance Contracts,05/10/2017,Premises Related Expenditure,78810,Neighbourhoods
1082.53,British Gas Business,Neighbourhoods,Waste & Fleet Management,Depot,4001,Electricity,05/10/2017,Premises Related Expenditure,78784,Neighbourhoods
950,Dta Electrical,Neighbourhoods,Waste & Fleet Management,Depot,4001,Responsive Works - Buildings,02/11/2017,Premises Related Expenditure,80047,Neighbourhoods
850,Nuthall Electrical Services Ltd,Neighbourhoods,Waste & Fleet Management,Depot,4001,Responsive Works - Buildings,05/12/2017,Premises Related Expenditure,81093,Neighbourhoods
840.01,Adt Fire And Security Plc,Neighbourhoods,Waste & Fleet Management,Depot,4001,Service Maintenance Contracts,27/10/2017,Premises Related Expenditure,79616,Neighbourhoods
699.75,British Gas Business,Neighbourhoods,Waste & Fleet Management,Depot,4001,Gas,05/12/2017,Premises Related Expenditure,80766,Neighbourhoods
638.24,British Gas Business,Neighbourhoods,Waste & Fleet Management,Depot,4001,Electricity,05/10/2017,Premises Related Expenditure,78815,Neighbourhoods
585,Fixfire,Neighbourhoods,Waste & Fleet Management,Depot,4001,Fire Precautions &  Alarms,21/12/2017,Premises Related Expenditure,81547,Neighbourhoods
581,Clearwater Technology Ltd,Neighbourhoods,Waste & Fleet Management,Depot,4001,Service Maintenance Contracts,17/11/2017,Premises Related Expenditure,79544,Neighbourhoods
563.39,Corona Energy Retail 3 Ltd,Neighbourhoods,Waste & Fleet Management,Depot,4001,Gas,05/12/2017,Premises Related Expenditure,80927,Neighbourhoods
105,Lodge Tyre Co.Ltd,Neighbourhoods,Waste & Fleet Management,Depot,4001,Tyres,02/11/2017,Transport Related Expenditure,79675,Neighbourhoods
70,Lodge Tyre Co.Ltd,Neighbourhoods,Waste & Fleet Management,Depot,4001,Tyres,02/11/2017,Transport Related Expenditure,79674,Neighbourhoods
2345,Ghm Planning Limited,Communities,Planning & Growth,Development Control,1161,Agency Staff,10/11/2017,Employee Related Expenditure,79882,Communities
1871.81,Havas People Ltd,Communities,Planning & Growth,Development Control,1161,Employee Advertising,05/10/2017,Employee Related Expenditure,79269,Communities
1700,No 1 High Pavement Chambers,Communities,Planning & Growth,Development Control,1161,Legal & Professional Services,20/11/2017,Supplies & Services,80731,Communities
1540,Whipling Farm Partnership,Communities,Planning & Growth,Development Control,1161,Fees & Charges - General,06/12/2017,Income,80940,Communities
1488,Haymarket Media Group,Communities,Planning & Growth,Development Control,1161,Books & Publications,21/12/2017,Supplies & Services,81081,Communities
1080,Ropewalk Chambers,Communities,Planning & Growth,Development Control,1161,Legal & Professional Services,05/12/2017,Supplies & Services,80466,Communities
1031.75,Valuation Office Agency,Communities,Planning & Growth,Development Control,1161,Legal & Professional Services,02/11/2017,Supplies & Services,79861,Communities
723.2,Local World Ltd,Communities,Planning & Growth,Development Control,1161,Advertising,21/12/2017,Supplies & Services,81283,Communities
640.64,Local World Ltd,Communities,Planning & Growth,Development Control,1161,Advertising,25/10/2017,Supplies & Services,79477,Communities
639.26,Local World Ltd,Communities,Planning & Growth,Development Control,1161,Advertising,21/12/2017,Supplies & Services,81285,Communities
619.88,Local World Ltd,Communities,Planning & Growth,Development Control,1161,Advertising,21/12/2017,Supplies & Services,81282,Communities
614.72,Local World Ltd,Communities,Planning & Growth,Development Control,1161,Advertising,21/12/2017,Supplies & Services,81280,Communities
600,Ropewalk Chambers,Communities,Planning & Growth,Development Control,1161,Legal & Professional Services,13/10/2017,Supplies & Services,79286,Communities
578.57,Local World Ltd,Communities,Planning & Growth,Development Control,1161,Advertising,25/10/2017,Supplies & Services,79480,Communities
490.97,Local World Ltd,Communities,Planning & Growth,Development Control,1161,Advertising,17/11/2017,Supplies & Services,80425,Communities
482.16,Local World Ltd,Communities,Planning & Growth,Development Control,1161,Advertising,21/12/2017,Supplies & Services,81284,Communities
424.28,Local World Ltd,Communities,Planning & Growth,Development Control,1161,Advertising,25/10/2017,Supplies & Services,79478,Communities
381.37,Local World Ltd,Communities,Planning & Growth,Development Control,1161,Advertising,17/11/2017,Supplies & Services,80421,Communities
8000,Nottingham City Council,Communities,Local Development Framework,Development Plans,1232,Legal & Professional Services,10/11/2017,Supplies & Services,80158,Communities
651.5,Nottingham City Council,Communities,Local Development Framework,Development Plans,1232,Legal & Professional Services,13/10/2017,Supplies & Services,79669,Communities
8200,Idox Software Limited,Capital Expenditure,Transformation & Innovation,Digital Strategy,604,Software,24/11/2017,Supplies & Services,79509,Capital Expenditure
30000,Trent Valley Plumbing & Build,Capital Expenditure,Neighbourhoods,Disabled Facilities Grant,332,Grants,21/11/2017,Supplies & Services,80914,Capital Expenditure
14044.89,Ndj Ltd T/A Belton Construction,Capital Expenditure,Neighbourhoods,Disabled Facilities Grant,332,Grants,14/11/2017,Supplies & Services,80439,Capital Expenditure
13751.17,T&S Heating Ltd,Capital Expenditure,Neighbourhoods,Disabled Facilities Grant,332,Grants,02/11/2017,Supplies & Services,80277,Capital Expenditure
13023.78,Terry Group Ltd,Capital Expenditure,Neighbourhoods,Disabled Facilities Grant,332,Grants,02/11/2017,Supplies & Services,80243,Capital Expenditure
11418,Trent Valley Plumbing & Build,Capital Expenditure,Neighbourhoods,Disabled Facilities Grant,332,Grants,21/11/2017,Supplies & Services,80738,Capital Expenditure
10724,P J Lilley Limited,Capital Expenditure,Neighbourhoods,Disabled Facilities Grant,332,Grants,02/11/2017,Supplies & Services,80319,Capital Expenditure
8061,P J Lilley Limited,Capital Expenditure,Neighbourhoods,Disabled Facilities Grant,332,Grants,10/11/2017,Supplies & Services,80499,Capital Expenditure
7430,T&S Heating Ltd,Capital Expenditure,Neighbourhoods,Disabled Facilities Grant,332,Grants,05/12/2017,Supplies & Services,81249,Capital Expenditure
7276.95,Oglesby Nottm Ltd,Capital Expenditure,Neighbourhoods,Disabled Facilities Grant,332,Grants,05/12/2017,Supplies & Services,81306,Capital Expenditure
5362,P J Lilley Limited,Capital Expenditure,Neighbourhoods,Disabled Facilities Grant,332,Grants,21/11/2017,Supplies & Services,80438,Capital Expenditure
5135,Kingkraft,Capital Expenditure,Neighbourhoods,Disabled Facilities Grant,332,Grants,21/11/2017,Supplies & Services,80770,Capital Expenditure
4907,Trent Valley Plumbing & Build,Capital Expenditure,Neighbourhoods,Disabled Facilities Grant,332,Grants,02/11/2017,Supplies & Services,80274,Capital Expenditure
4800,Barton Grange Construction Ltd,Capital Expenditure,Neighbourhoods,Disabled Facilities Grant,332,Grants,21/12/2017,Supplies & Services,81597,Capital Expenditure
4520,Obam Lift Services Ltd,Capital Expenditure,Neighbourhoods,Disabled Facilities Grant,332,Grants,21/11/2017,Supplies & Services,80831,Capital Expenditure
4438.65,Carlton Design & Fabrication,Capital Expenditure,Neighbourhoods,Disabled Facilities Grant,332,Grants,21/12/2017,Supplies & Services,81692,Capital Expenditure
4332,Trent Valley Plumbing & Build,Capital Expenditure,Neighbourhoods,Disabled Facilities Grant,332,Grants,21/11/2017,Supplies & Services,80837,Capital Expenditure
4280,Apw (Nottm) Ltd,Capital Expenditure,Neighbourhoods,Disabled Facilities Grant,332,Grants,21/12/2017,Supplies & Services,81689,Capital Expenditure
4235,Apw (Nottm) Ltd,Capital Expenditure,Neighbourhoods,Disabled Facilities Grant,332,Grants,17/11/2017,Supplies & Services,80771,Capital Expenditure
4108.71,Easibathe Limited,Capital Expenditure,Neighbourhoods,Disabled Facilities Grant,332,Grants,06/12/2017,Supplies & Services,80829,Capital Expenditure
4054,Water Centres Ltd,Capital Expenditure,Neighbourhoods,Disabled Facilities Grant,332,Grants,12/12/2017,Supplies & Services,81122,Capital Expenditure
4050,Total Hygiene Limited,Capital Expenditure,Neighbourhoods,Disabled Facilities Grant,332,Grants,21/11/2017,Supplies & Services,80827,Capital Expenditure
4046.8,Barton Grange Construction Ltd,Capital Expenditure,Neighbourhoods,Disabled Facilities Grant,332,Grants,05/12/2017,Supplies & Services,80435,Capital Expenditure
4027,Total Hygiene Limited,Capital Expenditure,Neighbourhoods,Disabled Facilities Grant,332,Grants,21/11/2017,Supplies & Services,80828,Capital Expenditure
3966,Trent Valley Plumbing & Build,Capital Expenditure,Neighbourhoods,Disabled Facilities Grant,332,Grants,21/11/2017,Supplies & Services,80832,Capital Expenditure
3922.8,A S Response Ltd,Capital Expenditure,Neighbourhoods,Disabled Facilities Grant,332,Grants,24/11/2017,Supplies & Services,81098,Capital Expenditure
3034.34,T&S Heating Ltd,Capital Expenditure,Neighbourhoods,Disabled Facilities Grant,332,Grants,17/11/2017,Supplies & Services,80772,Capital Expenditure
2994,Trent Valley Plumbing & Build,Capital Expenditure,Neighbourhoods,Disabled Facilities Grant,332,Grants,02/11/2017,Supplies & Services,80275,Capital Expenditure
2791.95,Brian Cooper Architect,Capital Expenditure,Neighbourhoods,Disabled Facilities Grant,332,Grants,02/11/2017,Supplies & Services,80272,Capital Expenditure
2761.42,Brian Cooper Architect,Capital Expenditure,Neighbourhoods,Disabled Facilities Grant,332,Grants,02/11/2017,Supplies & Services,80273,Capital Expenditure
2325,Candor Care Limited - Accounts Department,Capital Expenditure,Neighbourhoods,Disabled Facilities Grant,332,Grants,21/12/2017,Supplies & Services,81693,Capital Expenditure
2210.38,T&S Heating Ltd,Capital Expenditure,Neighbourhoods,Disabled Facilities Grant,332,Grants,21/12/2017,Supplies & Services,81690,Capital Expenditure
2110,Eclipse Access Solutions Ltd,Capital Expenditure,Neighbourhoods,Disabled Facilities Grant,332,Grants,06/12/2017,Supplies & Services,81101,Capital Expenditure
1836,Brian Cooper Architect,Capital Expenditure,Neighbourhoods,Disabled Facilities Grant,332,Grants,05/12/2017,Supplies & Services,81121,Capital Expenditure
1756.49,Obam Lift Services Ltd,Capital Expenditure,Neighbourhoods,Disabled Facilities Grant,332,Grants,21/12/2017,Supplies & Services,81608,Capital Expenditure
1745,Trent Valley Plumbing & Build,Capital Expenditure,Neighbourhoods,Disabled Facilities Grant,332,Grants,02/11/2017,Supplies & Services,80276,Capital Expenditure
1645,Dolphin Mobility East Mids Ltd,Capital Expenditure,Neighbourhoods,Disabled Facilities Grant,332,Grants,11/10/2017,Supplies & Services,79507,Capital Expenditure
1620,Dolphin Mobility East Mids Ltd,Capital Expenditure,Neighbourhoods,Disabled Facilities Grant,332,Grants,21/11/2017,Supplies & Services,80826,Capital Expenditure
1487.61,Carlton Design & Fabrication,Capital Expenditure,Neighbourhoods,Disabled Facilities Grant,332,Grants,21/12/2017,Supplies & Services,81687,Capital Expenditure
1380,Obam Lift Services Ltd,Capital Expenditure,Neighbourhoods,Disabled Facilities Grant,332,Grants,21/11/2017,Supplies & Services,80830,Capital Expenditure
6210.8,Barton Grange Construction Ltd,Capital Expenditure,Neighbourhoods,Discretionary Top-Ups Dfgs,333,Grants,05/12/2017,Supplies & Services,81120,Capital Expenditure
5219.62,T&S Heating Ltd,Capital Expenditure,Neighbourhoods,Discretionary Top-Ups Dfgs,333,Grants,21/12/2017,Supplies & Services,81690,Capital Expenditure
2385,Trent Valley Plumbing & Build,Capital Expenditure,Neighbourhoods,Discretionary Top-Ups Dfgs,333,Grants,21/11/2017,Supplies & Services,80913,Capital Expenditure
1953.2,Barton Grange Construction Ltd,Capital Expenditure,Neighbourhoods,Discretionary Top-Ups Dfgs,333,Grants,05/12/2017,Supplies & Services,80437,Capital Expenditure
715,Saxondale Boarding Kennels,Neighbourhoods,Environmental Health,Dog Control,1057,Legal & Professional Services,13/10/2017,Supplies & Services,79553,Neighbourhoods
48,Lodge Tyre Co.Ltd,Neighbourhoods,Environmental Health,Dog Control,1057,Tyres,02/11/2017,Transport Related Expenditure,79674,Neighbourhoods
40614.74,Nottinghamshire County Council,Neighbourhoods,Leisure Contracts & Car Parks,East Leake Leisure Centre,1700,Olas - Notts County Council,14/11/2017,Third Party Payments,80539,Neighbourhoods
12500,Ngi Uk Limited,Transformation,Economic Regeneration,Economic Development,1887,Other Services,06/12/2017,Supplies & Services,81262,Transformation
8750,Ade Regeneration,Transformation,Economic Regeneration,Economic Development,1887,Other Services,18/10/2017,Supplies & Services,79498,Transformation
8724.2,Planning Solutions Consulting,Transformation,Economic Regeneration,Economic Development,1887,Other Services,18/10/2017,Supplies & Services,79621,Transformation
8317.5,"Urbed (Urbanism, Environment And Design) Ltd",Transformation,Economic Regeneration,Economic Development,1887,Other Services,15/12/2017,Supplies & Services,81299,Transformation
4204,M. A. Mills Funeral Service,Transformation,Economic Regeneration,Economic Development,1887,Grants,06/12/2017,Supplies & Services,80912,Transformation
2500,Ade Regeneration,Transformation,Economic Regeneration,Economic Development,1887,Other Services,15/12/2017,Supplies & Services,81203,Transformation
627,Pizza Pasta Bar,Transformation,Economic Regeneration,Economic Development,1887,Grants,18/12/2017,Supplies & Services,80966,Transformation
555,Streetwise Environmental Ltd,Neighbourhoods,Leisure Contracts & Car Parks,Edwalton Golf Courses,1400,Responsive Works - Buildings,21/11/2017,Premises Related Expenditure,79790,Neighbourhoods
5376.98,Electoral Reform Services,Finance & Corporate Services,Democratic Services,Electoral Registration,1026,Telephone Response,27/10/2017,Supplies & Services,80163,Finance & Corporate Services
1340.34,Print Image Network Ltd,Finance & Corporate Services,Democratic Services,Electoral Registration,1026,Stationery,17/11/2017,Supplies & Services,80534,Finance & Corporate Services
980.49,Print Image Network Ltd,Finance & Corporate Services,Democratic Services,Electoral Registration,1026,External Printing,18/10/2017,Supplies & Services,79787,Finance & Corporate Services
859.54,Print Image Network Ltd,Finance & Corporate Services,Democratic Services,Electoral Registration,1026,External Printing,15/12/2017,Supplies & Services,81593,Finance & Corporate Services
817,Assoc Of Electoral Admin,Finance & Corporate Services,Democratic Services,Electoral Registration,1026,Conferences - Employees,18/10/2017,Supplies & Services,79673,Finance & Corporate Services
537.03,Royal Mail Group Ltd,Finance & Corporate Services,Democratic Services,Electoral Registration,1026,Postages,18/10/2017,Supplies & Services,79551,Finance & Corporate Services
508.64,Electoral Reform Services,Finance & Corporate Services,Democratic Services,Electoral Registration,1026,External Printing,18/10/2017,Supplies & Services,79535,Finance & Corporate Services
25900,Nottinghamshire County Council,Transformation,Emergency Planning,Emergency Planning,1041,O.L.A Staff,05/10/2017,Employee Related Expenditure,79345,Transformation
954,Creative Festivities Limited,Transformation,Economic Regeneration,Emt Support,4806,Other Miscellaneous Expenses,05/12/2017,Supplies & Services,81102,Transformation
954,Creative Festivities Limited,Transformation,Economic Regeneration,Emt Support,4806,Other Miscellaneous Expenses,21/12/2017,Supplies & Services,81599,Transformation
15750,Nottinghamshire Wildlife Trust,Communities,Community Development,Environmental Promotion,1590,Legal & Professional Services,02/11/2017,Supplies & Services,79698,Communities
4987.5,Beechmast Ltd,Communities,Community Development,Environmental Promotion,1590,Legal & Professional Services,05/10/2017,Supplies & Services,79511,Communities
2467.5,Beechmast Ltd,Communities,Community Development,Environmental Promotion,1590,Legal & Professional Services,05/10/2017,Supplies & Services,79527,Communities
5765.5,Anthony Collins Solicitors Llp,Finance & Corporate Services,Emt & Transformation,Executive Management Team,4721,Legal & Professional Services,02/11/2017,Supplies & Services,79798,Finance & Corporate Services
2800,Emap Publishing Ltd,Finance & Corporate Services,Emt & Transformation,Executive Management Team,4721,Conferences - Employees,21/12/2017,Supplies & Services,81739,Finance & Corporate Services
763.45,County Supplies,Communities,Community Development,Facilities Team,4714,Cleaning Equipment/Materials,05/10/2017,Supplies & Services,79221,Communities
525.62,County Supplies,Communities,Community Development,Facilities Team,4714,Cleaning Equipment/Materials,10/11/2017,Supplies & Services,80266,Communities
16056,Gedling Borough Council,Finance & Corporate Services,Financial Services,Financial Services,4705,Contractors-Supplies & Servs,13/10/2017,Supplies & Services,79429,Finance & Corporate Services
1875,Badenoch & Clark,Finance & Corporate Services,Financial Services,Financial Services,4705,Agency Staff,17/11/2017,Employee Related Expenditure,80533,Finance & Corporate Services
1875,Badenoch & Clark,Finance & Corporate Services,Financial Services,Financial Services,4705,Agency Staff,24/11/2017,Employee Related Expenditure,80762,Finance & Corporate Services
1875,Badenoch & Clark,Finance & Corporate Services,Financial Services,Financial Services,4705,Agency Staff,24/11/2017,Employee Related Expenditure,80792,Finance & Corporate Services
1875,Badenoch & Clark,Finance & Corporate Services,Financial Services,Financial Services,4705,Agency Staff,12/12/2017,Employee Related Expenditure,81062,Finance & Corporate Services
1875,Badenoch & Clark,Finance & Corporate Services,Financial Services,Financial Services,4705,Agency Staff,21/12/2017,Employee Related Expenditure,81659,Finance & Corporate Services
1836.29,Havas People Ltd,Finance & Corporate Services,Financial Services,Financial Services,4705,Employee Advertising,13/10/2017,Employee Related Expenditure,79249,Finance & Corporate Services
1500,Badenoch & Clark,Finance & Corporate Services,Financial Services,Financial Services,4705,Agency Staff,17/11/2017,Employee Related Expenditure,80532,Finance & Corporate Services
1495,Arlingclose Ltd,Finance & Corporate Services,Financial Services,Financial Services,4705,Training Expenses,02/11/2017,Employee Related Expenditure,79901,Finance & Corporate Services
750,Badenoch & Clark,Finance & Corporate Services,Financial Services,Financial Services,4705,Agency Staff,12/12/2017,Employee Related Expenditure,81475,Finance & Corporate Services
575,Jgp Resourcing Limited,Finance & Corporate Services,Financial Services,Financial Services,4705,Training Expenses,10/11/2017,Employee Related Expenditure,80470,Finance & Corporate Services
530.5,Havas People Ltd,Finance & Corporate Services,Financial Services,Financial Services,4705,Employee Advertising,27/10/2017,Employee Related Expenditure,79681,Finance & Corporate Services
339354,Notts Fire And Rescue Service,Collection Fund,Precepting Authorities,Fire Authority,5933,Precept Paid,13/10/2017,Collection Fund Accounts,74452,Collection Fund
339354,Notts Fire And Rescue Service,Collection Fund,Precepting Authorities,Fire Authority,5933,Precept Paid,17/11/2017,Collection Fund Accounts,74455,Collection Fund
339354,Notts Fire And Rescue Service,Collection Fund,Precepting Authorities,Fire Authority,5933,Precept Paid,21/12/2017,Collection Fund Accounts,74459,Collection Fund
22590.6,Certas Energy T/A Pace Fuelcare,Neighbourhoods,Waste & Fleet Management,Fleet,8600,Diesel,21/11/2017,Transport Related Expenditure,80941,Neighbourhoods
22397.4,Certas Energy T/A Pace Fuelcare,Neighbourhoods,Waste & Fleet Management,Fleet,8600,Diesel,21/12/2017,Transport Related Expenditure,81594,Neighbourhoods
22107.96,Certas Energy T/A Pace Fuelcare,Neighbourhoods,Waste & Fleet Management,Fleet,8600,Diesel,10/11/2017,Transport Related Expenditure,80410,Neighbourhoods
21961.99,Certas Energy T/A Pace Fuelcare,Neighbourhoods,Waste & Fleet Management,Fleet,8600,Diesel,25/10/2017,Transport Related Expenditure,79786,Neighbourhoods
19060.27,Certas Energy T/A Pace Fuelcare,Neighbourhoods,Waste & Fleet Management,Fleet,8600,Diesel,02/11/2017,Transport Related Expenditure,80230,Neighbourhoods
1902.3,Autoglym,Neighbourhoods,Waste & Fleet Management,Fleet,8600,Maintenance Contracts - Prems,10/11/2017,Premises Related Expenditure,80396,Neighbourhoods
1315.52,Triscan Systems Limited,Neighbourhoods,Waste & Fleet Management,Fleet,8600,Maintenance Contracts - Prems,02/11/2017,Premises Related Expenditure,79494,Neighbourhoods
1189.43,Fueltek Ltd,Neighbourhoods,Waste & Fleet Management,Fleet,8600,Maintenance Contracts - Prems,05/10/2017,Premises Related Expenditure,79219,Neighbourhoods
4780,Floorcare Services,Communities,Community Development,Gamston Community Hall,8992,Planned Maintenance Recharge,13/10/2017,Supplies & Services,79473,Communities
1400,Dta Electrical,Communities,Community Development,Gamston Community Hall,8992,Planned Maintenance Recharge,10/11/2017,Supplies & Services,80297,Communities
590,Dta Electrical,Communities,Community Development,Gamston Community Hall,8992,Responsive Works - Buildings,24/11/2017,Premises Related Expenditure,80780,Communities
60,Access Doors,Communities,Community Development,Gamston Community Hall,8992,Service Maintenance Contracts,11/10/2017,Premises Related Expenditure,78822,Communities
27148.86,Nottingham City Council,Neighbourhoods,Waste & Fleet Management,Garage,8700,Contractors-Transport,06/12/2017,Transport Related Expenditure,81224,Neighbourhoods
19177.46,Nottingham City Council,Neighbourhoods,Waste & Fleet Management,Garage,8700,Contractors-Transport,21/11/2017,Transport Related Expenditure,80939,Neighbourhoods
520,Collett Transport Services Ltd,Neighbourhoods,Waste & Fleet Management,Glass Recycling & Bring Sites,8407,Hire Of Transport/Plant,02/11/2017,Transport Related Expenditure,79904,Neighbourhoods
39813.5,Canal & River Trust,Transformation,Property Services,Grantham Canal,1284,Legal & Professional Services,27/11/2017,Supplies & Services,80728,Transformation
918.81,British Gas Business,Communities,Community Development,Gresham,8950,Electricity,05/12/2017,Premises Related Expenditure,80814,Communities
777.18,British Gas Business,Communities,Community Development,Gresham,8950,Electricity,25/10/2017,Premises Related Expenditure,79892,Communities
692.13,Maltby & Company,Communities,Community Development,Gresham,8950,Responsive Works - Buildings,11/10/2017,Premises Related Expenditure,79242,Communities
650.48,British Gas Business,Communities,Community Development,Gresham,8950,Electricity,05/10/2017,Premises Related Expenditure,79100,Communities
581,Clearwater Technology Ltd,Communities,Community Development,Gresham,8950,Service Maintenance Contracts,17/11/2017,Premises Related Expenditure,79545,Communities
260,Access Doors,Communities,Community Development,Gresham,8950,Service Maintenance Contracts,11/10/2017,Premises Related Expenditure,78822,Communities
1755,Ludlow Hill Mot Centre,Neighbourhoods,Environmental Health,Hackney Carriage/Private Hire,1031,Contractors-Transport,17/11/2017,Transport Related Expenditure,80270,Neighbourhoods
1575,Ludlow Hill Mot Centre,Neighbourhoods,Environmental Health,Hackney Carriage/Private Hire,1031,Contractors-Transport,21/11/2017,Transport Related Expenditure,80318,Neighbourhoods
1530,Ludlow Hill Mot Centre,Neighbourhoods,Environmental Health,Hackney Carriage/Private Hire,1031,Contractors-Transport,05/12/2017,Transport Related Expenditure,80978,Neighbourhoods
990,Fred Brown Car Repairs Limited,Neighbourhoods,Environmental Health,Hackney Carriage/Private Hire,1031,Contractors-Transport,05/12/2017,Transport Related Expenditure,81311,Neighbourhoods
870,Fred Brown Car Repairs Limited,Neighbourhoods,Environmental Health,Hackney Carriage/Private Hire,1031,Contractors-Transport,24/11/2017,Transport Related Expenditure,80433,Neighbourhoods
720,Fred Brown Car Repairs Limited,Neighbourhoods,Environmental Health,Hackney Carriage/Private Hire,1031,Contractors-Transport,11/10/2017,Transport Related Expenditure,79487,Neighbourhoods
629,Tennants Uk Ltd,Neighbourhoods,Environmental Health,Hackney Carriage/Private Hire,1031,Other Equipment/Materials,21/12/2017,Supplies & Services,81618,Neighbourhoods
612.5,Tennants Uk Ltd,Neighbourhoods,Environmental Health,Hackney Carriage/Private Hire,1031,Other Equipment/Materials,14/11/2017,Supplies & Services,80236,Neighbourhoods
9900,Tunstall Telecom,Neighbourhoods,Strategic Housing,Home Alarms,1137,Other Equipment/Materials,21/12/2017,Supplies & Services,81503,Neighbourhoods
5241.34,Tunstall Response Ltd,Neighbourhoods,Strategic Housing,Home Alarms,1137,Other Services,10/11/2017,Supplies & Services,80203,Neighbourhoods
5000,Friary Drop In,Neighbourhoods,Strategic Housing,Homeless B&B,1110,Grants,13/10/2017,Supplies & Services,79283,Neighbourhoods
800,Dta Electrical,Neighbourhoods,Strategic Housing,Hostel Hound Lodge,1111,Planned Maintenance Recharge,20/10/2017,Supplies & Services,79994,Neighbourhoods
575,Jgp Resourcing Limited,Neighbourhoods,Strategic Housing,Hostel Hound Lodge,1111,Training Expenses,17/11/2017,Employee Related Expenditure,80688,Neighbourhoods
545.76,Neurosystems Ltd,Neighbourhoods,Strategic Housing,Hostel Hound Lodge,1111,Fire Precautions &  Alarms,15/12/2017,Premises Related Expenditure,81228,Neighbourhoods
1800,Capita Software Services,Finance & Corporate Services,Revenues & Benefits,Housing Benefits Admin.,1140,Other Government Grants,25/10/2017,Income,79771,Finance & Corporate Services
557,Paul James,Neighbourhoods,Environmental Health,Housing Standards,1129,Licences,06/12/2017,Income,81270,Neighbourhoods
525,Matthew Chapman,Neighbourhoods,Environmental Health,Housing Standards,1129,Licences,20/11/2017,Income,80718,Neighbourhoods
513,Ferret Information Systems,Neighbourhoods,Environmental Health,Housing Standards,1129,Subscriptions,21/12/2017,Supplies & Services,81298,Neighbourhoods
7292,The Hr Lounge,Transformation,Human Resources,Human Resources,4709,Legal & Professional Services,18/10/2017,Supplies & Services,79488,Transformation
4085.94,Newark And Sherwood D C,Transformation,Human Resources,Human Resources,4709,O.L.A Staff,02/11/2017,Employee Related Expenditure,79932,Transformation
1840.25,Medigold Health Consultancy Ltd,Transformation,Human Resources,Human Resources,4709,Legal & Professional Services,11/10/2017,Supplies & Services,79086,Transformation
1530,Nottingham City Council,Transformation,Human Resources,Human Resources,4709,Subscriptions,05/12/2017,Supplies & Services,80923,Transformation
1273,Medigold Health Consultancy Ltd,Transformation,Human Resources,Human Resources,4709,Legal & Professional Services,02/11/2017,Supplies & Services,80001,Transformation
1140,Wellbeing Clinic Ltd,Transformation,Human Resources,Human Resources,4709,Legal & Professional Services,25/10/2017,Supplies & Services,80036,Transformation
1020,Wellbeing Clinic Ltd,Transformation,Human Resources,Human Resources,4709,Legal & Professional Services,25/10/2017,Supplies & Services,80028,Transformation
1020,Wellbeing Clinic Ltd,Transformation,Human Resources,Human Resources,4709,Legal & Professional Services,25/10/2017,Supplies & Services,80038,Transformation
840,Wellbeing Clinic Ltd,Transformation,Human Resources,Human Resources,4709,Legal & Professional Services,25/10/2017,Supplies & Services,80039,Transformation
780,Wellbeing Clinic Ltd,Transformation,Human Resources,Human Resources,4709,Legal & Professional Services,25/10/2017,Supplies & Services,80030,Transformation
720,Wellbeing Clinic Ltd,Transformation,Human Resources,Human Resources,4709,Legal & Professional Services,02/10/2017,Supplies & Services,59698,Transformation
720,Wellbeing Clinic Ltd,Transformation,Human Resources,Human Resources,4709,Legal & Professional Services,25/10/2017,Supplies & Services,80041,Transformation
600,Wellbeing Clinic Ltd,Transformation,Human Resources,Human Resources,4709,Legal & Professional Services,25/10/2017,Supplies & Services,80032,Transformation
62.88,Edenred,Transformation,Human Resources,Human Resources,4709,Flexible Benefits,02/10/2017,Employee Related Expenditure,78147,Transformation
52.56,Edenred,Transformation,Human Resources,Human Resources,4709,Flexible Benefits,14/11/2017,Employee Related Expenditure,80578,Transformation
47.9,Edenred,Transformation,Human Resources,Human Resources,4709,Flexible Benefits,15/12/2017,Employee Related Expenditure,81609,Transformation
1765.26,Ccs Media,Capital Expenditure,Transformation & Innovation,Ict Replacement Programme,592,Computer Hardware,02/11/2017,Supplies & Services,79880,Capital Expenditure
7225,Arlingclose Ltd,Finance & Corporate Services,Financial Services,Interest Receipts,1034,Legal & Professional Services,17/11/2017,Supplies & Services,80313,Finance & Corporate Services
3720,Rsm,Finance & Corporate Services,Financial Services,Internal Audit,4708,Legal & Professional Services,17/11/2017,Supplies & Services,78488,Finance & Corporate Services
3410,Rsm,Finance & Corporate Services,Financial Services,Internal Audit,4708,Legal & Professional Services,17/11/2017,Supplies & Services,79284,Finance & Corporate Services
7312.5,Hays Specialist Recruitment Ltd,Transformation,Ict,It,4703,Employee Advertising,21/12/2017,Employee Related Expenditure,81773,Transformation
18250,Civica Uk Ltd,Transformation,Ict,It Rechargeable Costs,4722,Maintenance Contracts - S&S,21/11/2017,Supplies & Services,80544,Transformation
11191.55,Northgate Public Services (Uk) Ltd,Transformation,Ict,It Rechargeable Costs,4722,Maintenance Contracts - S&S,17/11/2017,Supplies & Services,80057,Transformation
8718,Virgin Media Business,Transformation,Ict,It Rechargeable Costs,4722,Maintenance Contracts - S&S,21/11/2017,Supplies & Services,80538,Transformation
7994.84,Advanced Business Solutions,Transformation,Ict,It Rechargeable Costs,4722,Maintenance Contracts - S&S,02/11/2017,Supplies & Services,79626,Transformation
5163,Virgin Media Business,Transformation,Ict,It Rechargeable Costs,4722,Maintenance Contracts - S&S,14/11/2017,Supplies & Services,80537,Transformation
4864,Team Netsol Limited,Transformation,Ict,It Rechargeable Costs,4722,Maintenance Contracts - S&S,21/11/2017,Supplies & Services,80278,Transformation
4689.68,Broxtowe Borough Council,Transformation,Ict,It Rechargeable Costs,4722,Maintenance Contracts - S&S,15/12/2017,Supplies & Services,81272,Transformation
3790.47,Bt Telephone Payment Centre,Transformation,Ict,It Rechargeable Costs,4722,Maintenance Contracts - S&S,05/12/2017,Supplies & Services,80996,Transformation
3323.25,Daisy Communications Ltd,Transformation,Ict,It Rechargeable Costs,4722,Maintenance Contracts - S&S,21/11/2017,Supplies & Services,80579,Transformation
2271,Gedling Borough Council,Transformation,Ict,It Rechargeable Costs,4722,Maintenance Contracts - S&S,20/10/2017,Supplies & Services,79555,Transformation
2085.75,Vodafone Limited,Transformation,Ict,It Rechargeable Costs,4722,Maintenance Contracts - S&S,11/10/2017,Supplies & Services,79539,Transformation
1900,Idox Software Limited,Transformation,Ict,It Rechargeable Costs,4722,Software,21/12/2017,Supplies & Services,81324,Transformation
1600.95,Newark And Sherwood D C,Transformation,Ict,It Rechargeable Costs,4722,Maintenance Contracts - S&S,21/11/2017,Supplies & Services,80185,Transformation
1389.74,Vodafone Limited,Transformation,Ict,It Rechargeable Costs,4722,Maintenance Contracts - S&S,11/10/2017,Supplies & Services,78242,Transformation
1300,Northgate Public Services (Uk) Ltd,Transformation,Ict,It Rechargeable Costs,4722,Maintenance Contracts - S&S,12/12/2017,Supplies & Services,81084,Transformation
1110,Real Asset Management Plc,Transformation,Ict,It Rechargeable Costs,4722,Maintenance Contracts - S&S,11/10/2017,Supplies & Services,79431,Transformation
1030,M.J.Saunders Computer Services Ltd,Transformation,Ict,It Rechargeable Costs,4722,Cabling/Switches,10/11/2017,Supplies & Services,80555,Transformation
1010.73,Triscan Systems Limited,Transformation,Ict,It Rechargeable Costs,4722,Maintenance Contracts - S&S,17/11/2017,Supplies & Services,78735,Transformation
750,Due North Ltd,Transformation,Ict,It Rechargeable Costs,4722,Maintenance Contracts - S&S,05/12/2017,Supplies & Services,79282,Transformation
8424,Via East Midlands,Communities,Local Development Framework,Land Charges,1033,Other Services,10/11/2017,Supplies & Services,80022,Communities
1050,Nottinghamshire County Council,Communities,Local Development Framework,Land Charges,1033,Other Services,18/10/2017,Supplies & Services,79693,Communities
18000,Savills Uk Limited,Transformation,Property Services,Land Holdings,1884,Legal & Professional Services,10/11/2017,Supplies & Services,80180,Transformation
6000,Peter  Mitchell Associates,Transformation,Property Services,Land Holdings,1884,Legal & Professional Services,24/11/2017,Supplies & Services,81079,Transformation
5831,Freeth Cartwright Llp,Transformation,Property Services,Land Holdings,1884,Legal & Professional Services,25/10/2017,Supplies & Services,79906,Transformation
5549,Freeth Cartwright Llp,Transformation,Property Services,Land Holdings,1884,Legal & Professional Services,05/10/2017,Supplies & Services,79497,Transformation
4090.25,Freeth Cartwright Llp,Transformation,Property Services,Land Holdings,1884,Legal & Professional Services,21/12/2017,Supplies & Services,81652,Transformation
3241.6,Freeth Cartwright Llp,Transformation,Property Services,Land Holdings,1884,Electricity,05/12/2017,Premises Related Expenditure,81100,Transformation
2400,Streetwise Environmental Ltd,Transformation,Property Services,Land Holdings,1884,Responsive Works - Buildings,10/11/2017,Premises Related Expenditure,79062,Transformation
2250,Allen Archaeology,Transformation,Property Services,Land Holdings,1884,Legal & Professional Services,02/11/2017,Supplies & Services,80160,Transformation
1447.5,Premier Heating Services (East Midlands) Ltd,Transformation,Property Services,Land Holdings,1884,Responsive Works - Buildings,21/12/2017,Premises Related Expenditure,81695,Transformation
1231.25,Hodson Specialist Contractors,Transformation,Property Services,Land Holdings,1884,Legal & Professional Services,14/11/2017,Supplies & Services,80033,Transformation
1152,Browne Jacobson,Transformation,Property Services,Land Holdings,1884,Legal & Professional Services,05/12/2017,Supplies & Services,80801,Transformation
1107.05,Freeth Cartwright Llp,Transformation,Property Services,Land Holdings,1884,Legal & Professional Services,24/11/2017,Supplies & Services,79916,Transformation
1000,Browne Jacobson,Transformation,Property Services,Land Holdings,1884,Legal & Professional Services,05/12/2017,Supplies & Services,80802,Transformation
850,Browne Jacobson,Transformation,Property Services,Land Holdings,1884,Legal & Professional Services,25/10/2017,Supplies & Services,80020,Transformation
750,Heb Chartered Surveyors,Transformation,Property Services,Land Holdings,1884,Legal & Professional Services,15/12/2017,Supplies & Services,81070,Transformation
2211.04,Thomson Reuters,Finance & Corporate Services,Legal,Legal Services,4701,Books & Publications,24/11/2017,Supplies & Services,80543,Finance & Corporate Services
550.55,Havas People Ltd,Finance & Corporate Services,Legal,Legal Services,4701,Employee Advertising,05/12/2017,Employee Related Expenditure,80691,Finance & Corporate Services
525.45,Havas People Ltd,Finance & Corporate Services,Legal,Legal Services,4701,Employee Advertising,05/12/2017,Employee Related Expenditure,80693,Finance & Corporate Services
16675,Ler Ltd,Neighbourhoods,Leisure Contracts & Car Parks,Leisure Management Contract,1795,Programme Budget,21/11/2017,Premises Related Expenditure,79668,Neighbourhoods
5051.25,The South Wolds Academy And Sixth Form,Neighbourhoods,Leisure Contracts & Car Parks,Leisure Management Contract,1795,Premises Rents,25/10/2017,Premises Related Expenditure,76905,Neighbourhoods
5051.25,The South Wolds Academy And Sixth Form,Neighbourhoods,Leisure Contracts & Car Parks,Leisure Management Contract,1795,Premises Rents,05/12/2017,Premises Related Expenditure,80713,Neighbourhoods
4975.28,The South Wolds Academy And Sixth Form,Neighbourhoods,Leisure Contracts & Car Parks,Leisure Management Contract,1795,Electricity,25/10/2017,Premises Related Expenditure,79151,Neighbourhoods
3334,Parkwood Community Leisure,Neighbourhoods,Leisure Contracts & Car Parks,Leisure Management Contract,1795,Gas,18/10/2017,Premises Related Expenditure,79343,Neighbourhoods
2400,Commercial Surface Solutions Ltd,Neighbourhoods,Leisure Contracts & Car Parks,Leisure Management Contract,1795,Responsive Works - Buildings,21/12/2017,Premises Related Expenditure,81746,Neighbourhoods
1824.58,Water Plus,Neighbourhoods,Leisure Contracts & Car Parks,Leisure Management Contract,1795,Electricity,21/11/2017,Premises Related Expenditure,80576,Neighbourhoods
1680,Parkwood Community Leisure,Neighbourhoods,Leisure Contracts & Car Parks,Leisure Management Contract,1795,D.B.S Checks - Employees,18/10/2017,Employee Related Expenditure,79463,Neighbourhoods
830.05,The South Wolds Academy And Sixth Form,Neighbourhoods,Leisure Contracts & Car Parks,Leisure Management Contract,1795,Electricity,25/10/2017,Premises Related Expenditure,79153,Neighbourhoods
824.48,The South Wolds Academy And Sixth Form,Neighbourhoods,Leisure Contracts & Car Parks,Leisure Management Contract,1795,Electricity,25/10/2017,Premises Related Expenditure,79152,Neighbourhoods
811.41,The South Wolds Academy And Sixth Form,Neighbourhoods,Leisure Contracts & Car Parks,Leisure Management Contract,1795,Electricity,05/12/2017,Premises Related Expenditure,80796,Neighbourhoods
770.24,The South Wolds Academy And Sixth Form,Neighbourhoods,Leisure Contracts & Car Parks,Leisure Management Contract,1795,Electricity,05/12/2017,Premises Related Expenditure,80797,Neighbourhoods
620.95,Nottinghamshire County Council,Neighbourhoods,Leisure Contracts & Car Parks,Leisure Management Contract,1795,Grounds Maintenance,02/11/2017,Premises Related Expenditure,79435,Neighbourhoods
620.95,Nottinghamshire County Council,Neighbourhoods,Leisure Contracts & Car Parks,Leisure Management Contract,1795,Grounds Maintenance,05/12/2017,Premises Related Expenditure,80403,Neighbourhoods
750.2,Maltby & Company,Communities,Community Development,Lutterell Hall,8990,Responsive Works - Buildings,10/11/2017,Premises Related Expenditure,80254,Communities
110,Access Doors,Communities,Community Development,Lutterell Hall,8990,Service Maintenance Contracts,11/10/2017,Premises Related Expenditure,78822,Communities
2424.3,Zurich Municipal,Finance & Corporate Services,Financial Services,Main Premiums,4920,Premises Insurance,05/12/2017,Premises Related Expenditure,80463,Finance & Corporate Services
2137.3,Zurich Municipal,Finance & Corporate Services,Financial Services,Main Premiums,4920,Premises Insurance,05/12/2017,Premises Related Expenditure,80464,Finance & Corporate Services
583.33,Notts County Cricket Club,Finance & Corporate Services,Democratic Services,Mayoral Expenses,1001,Expenditure In Year,05/12/2017,Transfers Expenditure,81259,Finance & Corporate Services
140,Lodge Tyre Co.Ltd,Neighbourhoods,Waste & Fleet Management,Medical Collections,8422,Tyres,02/11/2017,Transport Related Expenditure,79675,Neighbourhoods
63.5,Lodge Tyre Co.Ltd,Neighbourhoods,Waste & Fleet Management,Medical Collections,8422,Tyres,02/11/2017,Transport Related Expenditure,79674,Neighbourhoods
1650,East Midlands Councils,Finance & Corporate Services,Democratic Services,Members Services,1000,Training Expenses,02/11/2017,Employee Related Expenditure,79858,Finance & Corporate Services
1000,Barton In Fabis Parish Council,Finance & Corporate Services,Democratic Services,Members Services,1000,Grants,12/12/2017,Supplies & Services,80969,Finance & Corporate Services
1000,The Media Group,Finance & Corporate Services,Democratic Services,Members Services,1000,Training Expenses,27/10/2017,Employee Related Expenditure,80035,Finance & Corporate Services
646,Mrs Judith Booth,Finance & Corporate Services,Democratic Services,Members Services,1000,Other Miscellaneous Expenses,06/12/2017,Supplies & Services,80774,Finance & Corporate Services
520,Streetwise Environmental Ltd,Finance & Corporate Services,Democratic Services,Members Services,1000,Grants,06/12/2017,Supplies & Services,81195,Finance & Corporate Services
2655,Freeth Cartwright Llp,Capital Expenditure,Transformation & Innovation,Multi Service Centre,348,Legal & Professional Services,27/10/2017,Supplies & Services,80085,Capital Expenditure
1081.12,Carl Dean Associates Limited,Capital Expenditure,Transformation & Innovation,Multi Service Centre,348,Legal & Professional Services,18/10/2017,Supplies & Services,79347,Capital Expenditure
864.9,Carl Dean Associates Limited,Capital Expenditure,Transformation & Innovation,Multi Service Centre,348,Legal & Professional Services,15/12/2017,Supplies & Services,81209,Capital Expenditure
762.6,Engineering Services Consultancy Limited,Capital Expenditure,Transformation & Innovation,Multi Service Centre,348,Legal & Professional Services,21/12/2017,Supplies & Services,81496,Capital Expenditure
6662164.5,Nottinghamshire County Council,Collection Fund,Precepting Authorities,Notts County Council,5930,Precept Paid,13/10/2017,Collection Fund Accounts,74451,Collection Fund
6662164.5,Nottinghamshire County Council,Collection Fund,Precepting Authorities,Notts County Council,5930,Precept Paid,17/11/2017,Collection Fund Accounts,74454,Collection Fund
6662164.5,Nottinghamshire County Council,Collection Fund,Precepting Authorities,Notts County Council,5930,Precept Paid,21/12/2017,Collection Fund Accounts,74457,Collection Fund
2284.35,Streetwise Environmental Ltd,Transformation,Property Services,Open Spaces & Footpaths,1290,Responsive Works - Buildings,05/12/2017,Premises Related Expenditure,81184,Transformation
1848.95,Streetwise Environmental Ltd,Transformation,Property Services,Open Spaces & Footpaths,1290,Responsive Works - Buildings,12/12/2017,Premises Related Expenditure,81247,Transformation
1379,Commercial Surface Solutions Ltd,Transformation,Property Services,Open Spaces & Footpaths,1290,Responsive Works - Buildings,02/11/2017,Premises Related Expenditure,80242,Transformation
1100,Commercial Surface Solutions Ltd,Transformation,Property Services,Open Spaces & Footpaths,1290,Responsive Works - Buildings,15/12/2017,Premises Related Expenditure,81620,Transformation
121627,Trent Valley Internal Drainage Board,General Fund Summary,Cies,Parish Council Precepts,1990,Parish Precepts,27/11/2017,Transfers Expenditure,74467,General Fund Summary
3470.81,Gedling Borough Council,Rechargeable Accounts,Elections Rechargeable,Parish Election,7100,Election Fees,21/11/2017,Employee Related Expenditure,80909,Rechargeable Accounts
2369.16,Gedling Borough Council,Rechargeable Accounts,Elections Rechargeable,Parish Election,7100,Election Fees,15/12/2017,Employee Related Expenditure,81684,Rechargeable Accounts
1016.85,Royal Mail Group Ltd,Rechargeable Accounts,Elections Rechargeable,Parish Election,7100,Postages,05/12/2017,Supplies & Services,80794,Rechargeable Accounts
1013.66,Royal Mail Group Ltd,Rechargeable Accounts,Elections Rechargeable,Parish Election,7100,Postages,21/12/2017,Supplies & Services,81696,Rechargeable Accounts
667,Paul Tinsley Decorating,Transformation,Property Services,Parish Run Pub Conveniences,1072,Planned Maintenance Recharge,11/10/2017,Supplies & Services,79363,Transformation
2147.2,"Knight, Kavanagh And Page Ltd",Communities,Community Development,Parks & Playing Fields-Gen,8910,Legal & Professional Services,11/10/2017,Supplies & Services,79273,Communities
1977.38,Streetwise Environmental Ltd,Communities,Community Development,Parks & Playing Fields-Gen,8910,Responsive Works - Buildings,05/12/2017,Premises Related Expenditure,81110,Communities
977.5,Streetwise Environmental Ltd,Communities,Community Development,Parks & Playing Fields-Gen,8910,Responsive Works - Buildings,27/11/2017,Premises Related Expenditure,80733,Communities
12319.2,Toot Hill School,Rechargeable Accounts,Elections Rechargeable,Parkwood Rechargeables,7002,Electricity,12/12/2017,Premises Related Expenditure,81123,Rechargeable Accounts
6617.06,Toot Hill School,Rechargeable Accounts,Elections Rechargeable,Parkwood Rechargeables,7002,Gas,12/12/2017,Premises Related Expenditure,81119,Rechargeable Accounts
1216.85,The South Wolds Academy And Sixth Form,Rechargeable Accounts,Elections Rechargeable,Parkwood Rechargeables,7002,Gas,05/12/2017,Premises Related Expenditure,80995,Rechargeable Accounts
1121.12,The South Wolds Academy And Sixth Form,Rechargeable Accounts,Elections Rechargeable,Parkwood Rechargeables,7002,Gas,05/12/2017,Premises Related Expenditure,80994,Rechargeable Accounts
2376.05,Gedling Borough Council,Rechargeable Accounts,Elections Rechargeable,Parliamentary Election,7103,Election Fees,15/12/2017,Employee Related Expenditure,81684,Rechargeable Accounts
1714.14,Ncc Pension Fund,Rechargeable Accounts,Elections Rechargeable,Parliamentary Election,7103,Election Fees,13/10/2017,Employee Related Expenditure,79688,Rechargeable Accounts
307431,Notts County Council Property Services,Liabilities,Long Term Liabilities,Pasture Lane Rudd 12/01199,6751,Balance Sheet Exp In The Year,21/12/2017,Balance Sheet Exp In The Year,81699,Liabilities
7789,A R Signs Ltd,Finance & Corporate Services,"Performance, Repn & Comms",Performance And Reputation,4710,External Printing,02/11/2017,Supplies & Services,79856,Finance & Corporate Services
6073,A R Signs Ltd,Finance & Corporate Services,"Performance, Repn & Comms",Performance And Reputation,4710,External Printing,27/11/2017,Supplies & Services,80566,Finance & Corporate Services
4550.23,The National Leaflet Company,Finance & Corporate Services,"Performance, Repn & Comms",Performance And Reputation,4710,Other Services,15/12/2017,Supplies & Services,81591,Finance & Corporate Services
4530,A R Signs Ltd,Finance & Corporate Services,"Performance, Repn & Comms",Performance And Reputation,4710,External Printing,12/12/2017,Supplies & Services,81111,Finance & Corporate Services
2260,Nottinghamshire County Council,Finance & Corporate Services,"Performance, Repn & Comms",Performance And Reputation,4710,External Printing,17/11/2017,Supplies & Services,80563,Finance & Corporate Services
1565,Grapefruit Creative,Finance & Corporate Services,"Performance, Repn & Comms",Performance And Reputation,4710,Legal & Professional Services,17/11/2017,Supplies & Services,80690,Finance & Corporate Services
1475,Grapefruit Creative,Finance & Corporate Services,"Performance, Repn & Comms",Performance And Reputation,4710,Legal & Professional Services,10/11/2017,Supplies & Services,80480,Finance & Corporate Services
721,A R Signs Ltd,Finance & Corporate Services,"Performance, Repn & Comms",Performance And Reputation,4710,External Printing,21/11/2017,Supplies & Services,80482,Finance & Corporate Services
807.72,Killgerm Chemicals Ltd,Neighbourhoods,Environmental Health,Pest Control,1062,Other Equipment/Materials,02/11/2017,Supplies & Services,80208,Neighbourhoods
1660.04,Xerox (Uk) Limited,Transformation,Ict,Photocopiers,5017,Rental & Copy Charges,21/11/2017,Supplies & Services,80586,Transformation
910.39,Xerox (Uk) Limited,Transformation,Ict,Photocopiers,5017,Rental & Copy Charges,21/11/2017,Supplies & Services,80585,Transformation
593.17,Xerox (Uk) Limited,Transformation,Ict,Photocopiers,5017,Rental & Copy Charges,21/11/2017,Supplies & Services,80588,Transformation
505.63,Xerox (Uk) Limited,Transformation,Ict,Photocopiers,5017,Rental & Copy Charges,21/11/2017,Supplies & Services,80587,Transformation
768012,Notts Police & Crime Commissioner,Collection Fund,Precepting Authorities,Police Authority,5932,Precept Paid,13/10/2017,Collection Fund Accounts,74453,Collection Fund
768012,Notts Police & Crime Commissioner,Collection Fund,Precepting Authorities,Police Authority,5932,Precept Paid,17/11/2017,Collection Fund Accounts,74456,Collection Fund
768012,Notts Police & Crime Commissioner,Collection Fund,Precepting Authorities,Police Authority,5932,Precept Paid,21/12/2017,Collection Fund Accounts,74458,Collection Fund
925,Cipfa Business Limited,Transformation,Property Services,Property Services,4713,Legal & Professional Services,11/10/2017,Supplies & Services,79372,Transformation
570,Clearwater Technology Ltd,Transformation,Property Services,Property Services,4713,Training Expenses,02/11/2017,Employee Related Expenditure,80157,Transformation
1384,Co-Operative Funeral Care,Neighbourhoods,Environmental Health,Public Health,1127,Welfare Burials,12/12/2017,Supplies & Services,81159,Neighbourhoods
4550,M.R.J.Faulks & Son Ltd,Communities,Community Development,Rushcliffe Country Park,1375,Maintenance Contracts - S&S,10/11/2017,Supplies & Services,80181,Communities
1263.42,Tradelink Solutions Ltd,Communities,Community Development,Rushcliffe Country Park,1375,Fees & Charges - General,06/12/2017,Income,81261,Communities
1030,Natsol Ltd,Communities,Community Development,Rushcliffe Country Park,1375,Responsive Works - Buildings,21/12/2017,Premises Related Expenditure,81193,Communities
921,Cdp Training & Development Ltd,Communities,Community Development,Rushcliffe Country Park,1375,Training Expenses,06/12/2017,Employee Related Expenditure,81318,Communities
780,Dta Electrical,Communities,Community Development,Rushcliffe Country Park,1375,Planned Maintenance Recharge,21/12/2017,Supplies & Services,81829,Communities
529,Park Hill Training,Communities,Community Development,Rushcliffe Country Park,1375,Other Equipment/Materials,21/12/2017,Supplies & Services,81086,Communities
335,Access Doors,Communities,Community Development,Rushcliffe Country Park,1375,Service Maintenance Contracts,11/10/2017,Premises Related Expenditure,78822,Communities
288,Naturescape,Communities,Community Development,Rushcliffe Country Park,1375,Purchases For Recharge,24/11/2017,Supplies & Services,80964,Communities
230.48,Naturescape,Communities,Community Development,Rushcliffe Country Park,1375,Other Equipment/Materials,24/11/2017,Supplies & Services,80964,Communities
3144.01,Edenred,Sals & Wages Deductions A/C,Sals & Wages Deductions A/C,Sals & Wages Deductions A/C,5015,Edenred,02/10/2017,Transfers Expenditure,78147,Sals & Wages Deductions A/C
2660.53,Prudential Local Govt Avc Dept,Sals & Wages Deductions A/C,Sals & Wages Deductions A/C,Sals & Wages Deductions A/C,5015,Avc'S,25/10/2017,Transfers Expenditure,79927,Sals & Wages Deductions A/C
2660.53,Prudential Local Govt Avc Dept,Sals & Wages Deductions A/C,Sals & Wages Deductions A/C,Sals & Wages Deductions A/C,5015,Avc'S,21/11/2017,Transfers Expenditure,80985,Sals & Wages Deductions A/C
2628.01,Edenred,Sals & Wages Deductions A/C,Sals & Wages Deductions A/C,Sals & Wages Deductions A/C,5015,Edenred,14/11/2017,Transfers Expenditure,80578,Sals & Wages Deductions A/C
2395.01,Edenred,Sals & Wages Deductions A/C,Sals & Wages Deductions A/C,Sals & Wages Deductions A/C,5015,Edenred,15/12/2017,Transfers Expenditure,81609,Sals & Wages Deductions A/C
758,Unison,Sals & Wages Deductions A/C,Sals & Wages Deductions A/C,Sals & Wages Deductions A/C,5015,Unison Subscriptions,05/10/2017,Transfers Expenditure,79168,Sals & Wages Deductions A/C
740.75,Unison,Sals & Wages Deductions A/C,Sals & Wages Deductions A/C,Sals & Wages Deductions A/C,5015,Unison Subscriptions,25/10/2017,Transfers Expenditure,79923,Sals & Wages Deductions A/C
740.75,Unison,Sals & Wages Deductions A/C,Sals & Wages Deductions A/C,Sals & Wages Deductions A/C,5015,Unison Subscriptions,21/11/2017,Transfers Expenditure,80988,Sals & Wages Deductions A/C
845,Daykin Floor Renovation Ltd,Communities,Community Development,Sir Julien Cahn Pavilion,8993,Service Maintenance Contracts,11/10/2017,Premises Related Expenditure,79055,Communities
85,Access Doors,Communities,Community Development,Sir Julien Cahn Pavilion,8993,Service Maintenance Contracts,11/10/2017,Premises Related Expenditure,78822,Communities
1060,Parkwood Community Leisure,Communities,Community Development,Sports Development,1593,Projects & Activities,05/10/2017,Supplies & Services,79336,Communities
126852.52,Streetwise Environmental Ltd,Neighbourhoods,Waste & Fleet Management,Streetwise Contract,8301,Contractors-Third Party,25/10/2017,Third Party Payments,79775,Neighbourhoods
126852.52,Streetwise Environmental Ltd,Neighbourhoods,Waste & Fleet Management,Streetwise Contract,8301,Contractors-Third Party,05/12/2017,Third Party Payments,80736,Neighbourhoods
126852.52,Streetwise Environmental Ltd,Neighbourhoods,Waste & Fleet Management,Streetwise Contract,8301,Contractors-Third Party,21/12/2017,Third Party Payments,81655,Neighbourhoods
771,Medigold Health Consultancy Ltd,Rechargeable Accounts,Rechargeable Works,Streetwise Enterprise Recharge,7009,Legal & Professional Services,02/11/2017,Supplies & Services,80001,Rechargeable Accounts
724.83,Streetwise Environmental Ltd,Rechargeable Accounts,Rechargeable Works,Streetwise Enterprise Recharge,7009,Other Income,02/11/2017,Income,79887,Rechargeable Accounts
480,Medigold Health Consultancy Ltd,Rechargeable Accounts,Rechargeable Works,Streetwise Enterprise Recharge,7009,Legal & Professional Services,11/10/2017,Supplies & Services,79086,Rechargeable Accounts
120,Wellbeing Clinic Ltd,Rechargeable Accounts,Rechargeable Works,Streetwise Enterprise Recharge,7009,Legal & Professional Services,25/10/2017,Supplies & Services,80028,Rechargeable Accounts
60,Wellbeing Clinic Ltd,Rechargeable Accounts,Rechargeable Works,Streetwise Enterprise Recharge,7009,Legal & Professional Services,25/10/2017,Supplies & Services,80030,Rechargeable Accounts
1550.4,Jth Concerts & Live Events Limited,Rechargeable Accounts,Suspense Accounts,Suspense No Code,5224,Returned Creditors,05/10/2017,Returned Creditors,79468,Rechargeable Accounts
2583.56,Severn Trent Water,Neighbourhoods,Waste & Fleet Management,Tanker Services,1948,Waste Disposal,25/10/2017,Supplies & Services,79676,Neighbourhoods
2372.28,Severn Trent Water,Neighbourhoods,Waste & Fleet Management,Tanker Services,1948,Waste Disposal,21/11/2017,Supplies & Services,80795,Neighbourhoods
53.5,Lodge Tyre Co.Ltd,Neighbourhoods,Waste & Fleet Management,Tanker Services,1948,Tyres,02/11/2017,Transport Related Expenditure,79674,Neighbourhoods
11648.28,Daisy Communications Ltd,Transformation,Ict,Telephones,4870,Telephone Rental,21/11/2017,Supplies & Services,80579,Transformation
10375.75,Daisy Communications Ltd,Transformation,Ict,Telephones,4870,Maintenance Contracts - S&S,21/11/2017,Supplies & Services,80579,Transformation
1705.46,Ee Ltd (Airtime),Transformation,Ict,Telephones,4870,Mobiles,21/12/2017,Supplies & Services,81486,Transformation
1655.46,Ee Ltd (Airtime),Transformation,Ict,Telephones,4870,Mobiles,21/11/2017,Supplies & Services,80468,Transformation
1655.18,Ee Ltd (Airtime),Transformation,Ict,Telephones,4870,Mobiles,02/11/2017,Supplies & Services,79614,Transformation
772.28,Daisy Communications Ltd,Transformation,Ict,Telephones,4870,Telephone Rental,21/11/2017,Supplies & Services,77234,Transformation
605.07,Daisy Communications Ltd,Transformation,Ict,Telephones,4870,Telephone Call Charges,21/11/2017,Supplies & Services,77234,Transformation
603.14,Daisy Communications Ltd,Transformation,Ict,Telephones,4870,Telephone Call Charges,21/11/2017,Supplies & Services,78083,Transformation
580,Ee Limited (Equipment),Transformation,Ict,Telephones,4870,Mobiles,02/11/2017,Supplies & Services,79997,Transformation
577.9,Bt Telephone Payment Centre,Transformation,Ict,Telephones,4870,Telephone Rental,11/10/2017,Supplies & Services,79506,Transformation
513.4,Daisy Communications Ltd,Transformation,Ict,Telephones,4870,Telephone Rental,21/11/2017,Supplies & Services,75497,Transformation
504.25,Daisy Communications Ltd,Transformation,Ict,Telephones,4870,Telephone Call Charges,21/11/2017,Supplies & Services,75497,Transformation
364.4,Daisy Communications Ltd,Transformation,Ict,Telephones,4870,Telephone Rental,21/11/2017,Supplies & Services,78083,Transformation
137.13,Bt Telephone Payment Centre,Transformation,Ict,Telephones,4870,Telephone Call Charges,11/10/2017,Supplies & Services,79506,Transformation
5875,Nuthall Electrical Services Ltd,Capital Expenditure,Transformation & Innovation,The Point,360,Contractors-Third Party,05/12/2017,Third Party Payments,81213,Capital Expenditure
4261.6,Fisher Hargreaves Proctor,Transformation,Property Services,The Point,1886,Legal & Professional Services,25/10/2017,Supplies & Services,77797,Transformation
3225,Heb Chartered Surveyors,Transformation,Property Services,The Point,1886,Legal & Professional Services,24/11/2017,Supplies & Services,80246,Transformation
1142.63,Maltby & Company,Transformation,Property Services,The Point,1886,Planned Maintenance Recharge,13/10/2017,Supplies & Services,79518,Transformation
847.31,British Gas Business,Transformation,Property Services,The Point,1886,Electricity,24/11/2017,Premises Related Expenditure,80739,Transformation
596,Central Fire Systems Ltd,Transformation,Property Services,The Point,1886,Service Maintenance Contracts,15/12/2017,Premises Related Expenditure,81200,Transformation
542.48,British Gas Business,Transformation,Property Services,The Point,1886,Electricity,15/12/2017,Premises Related Expenditure,81533,Transformation
90,Central Fire Systems Ltd,Transformation,Property Services,The Point,1886,Responsive Works - Buildings,15/12/2017,Premises Related Expenditure,81200,Transformation
60,Access Doors,Transformation,Property Services,The Point,1886,Service Maintenance Contracts,11/10/2017,Premises Related Expenditure,78822,Transformation
1175,Capita Business Services Ltd,Finance & Corporate Services,Emt & Transformation,Transformation Team,4810,Training Expenses,12/12/2017,Employee Related Expenditure,81189,Finance & Corporate Services
6327.5,Lodge Tyre Co.Ltd,Neighbourhoods,Waste & Fleet Management,Waste Collection,8403,Tyres,02/11/2017,Transport Related Expenditure,79675,Neighbourhoods
4239.5,Lodge Tyre Co.Ltd,Neighbourhoods,Waste & Fleet Management,Waste Collection,8403,Tyres,02/11/2017,Transport Related Expenditure,79674,Neighbourhoods
3612.25,Frontline Recruitment Ltd,Neighbourhoods,Waste & Fleet Management,Waste Collection,8403,Agency Staff,05/10/2017,Employee Related Expenditure,79054,Neighbourhoods
3390.42,Frontline Recruitment Ltd,Neighbourhoods,Waste & Fleet Management,Waste Collection,8403,Agency Staff,18/10/2017,Employee Related Expenditure,79795,Neighbourhoods
3231.64,Frontline Recruitment Ltd,Neighbourhoods,Waste & Fleet Management,Waste Collection,8403,Agency Staff,10/11/2017,Employee Related Expenditure,80446,Neighbourhoods
3030.83,Frontline Recruitment Ltd,Neighbourhoods,Waste & Fleet Management,Waste Collection,8403,Agency Staff,11/10/2017,Employee Related Expenditure,79378,Neighbourhoods
2988.8,Frontline Recruitment Ltd,Neighbourhoods,Waste & Fleet Management,Waste Collection,8403,Agency Staff,27/11/2017,Employee Related Expenditure,80210,Neighbourhoods
2607.66,Frontline Recruitment Ltd,Neighbourhoods,Waste & Fleet Management,Waste Collection,8403,Agency Staff,11/10/2017,Employee Related Expenditure,79292,Neighbourhoods
2407.39,Frontline Recruitment Ltd,Neighbourhoods,Waste & Fleet Management,Waste Collection,8403,Agency Staff,14/11/2017,Employee Related Expenditure,80590,Neighbourhoods
2402.72,Frontline Recruitment Ltd,Neighbourhoods,Waste & Fleet Management,Waste Collection,8403,Agency Staff,11/10/2017,Employee Related Expenditure,79629,Neighbourhoods
2064.14,Frontline Recruitment Ltd,Neighbourhoods,Waste & Fleet Management,Waste Collection,8403,Agency Staff,27/11/2017,Employee Related Expenditure,81118,Neighbourhoods
1499.07,Frontline Recruitment Ltd,Neighbourhoods,Waste & Fleet Management,Waste Collection,8403,Agency Staff,25/10/2017,Employee Related Expenditure,80023,Neighbourhoods
1431.36,Frontline Recruitment Ltd,Neighbourhoods,Waste & Fleet Management,Waste Collection,8403,Agency Staff,21/12/2017,Employee Related Expenditure,81662,Neighbourhoods
1342.63,Frontline Recruitment Ltd,Neighbourhoods,Waste & Fleet Management,Waste Collection,8403,Agency Staff,12/12/2017,Employee Related Expenditure,80838,Neighbourhoods
1308.94,Arden Winch & Co Ltd,Neighbourhoods,Waste & Fleet Management,Waste Collection,8403,Protective Clothing/Uniforms,17/11/2017,Supplies & Services,79263,Neighbourhoods
900.86,Havas People Ltd,Neighbourhoods,Waste & Fleet Management,Waste Collection,8403,Employee Advertising,10/11/2017,Employee Related Expenditure,80013,Neighbourhoods
838.27,Frontline Recruitment Ltd,Neighbourhoods,Waste & Fleet Management,Waste Collection,8403,Agency Staff,05/12/2017,Employee Related Expenditure,81264,Neighbourhoods
594,The Best Connection Group Limited,Neighbourhoods,Waste & Fleet Management,Waste Collection,8403,Agency Staff,05/10/2017,Employee Related Expenditure,79076,Neighbourhoods
579.6,Driver Hire Nottingham,Neighbourhoods,Waste & Fleet Management,Waste Collection,8403,Agency Staff,05/10/2017,Employee Related Expenditure,79053,Neighbourhoods
579.6,Driver Hire Nottingham,Neighbourhoods,Waste & Fleet Management,Waste Collection,8403,Agency Staff,05/10/2017,Employee Related Expenditure,79459,Neighbourhoods
579.6,Driver Hire Nottingham,Neighbourhoods,Waste & Fleet Management,Waste Collection,8403,Agency Staff,11/10/2017,Employee Related Expenditure,79380,Neighbourhoods
579.6,Driver Hire Nottingham,Neighbourhoods,Waste & Fleet Management,Waste Collection,8403,Agency Staff,13/10/2017,Employee Related Expenditure,79653,Neighbourhoods
579.6,Driver Hire Nottingham,Neighbourhoods,Waste & Fleet Management,Waste Collection,8403,Agency Staff,18/10/2017,Employee Related Expenditure,79801,Neighbourhoods
579.6,Driver Hire Nottingham,Neighbourhoods,Waste & Fleet Management,Waste Collection,8403,Agency Staff,25/10/2017,Employee Related Expenditure,80052,Neighbourhoods
579.6,Driver Hire Nottingham,Neighbourhoods,Waste & Fleet Management,Waste Collection,8403,Agency Staff,02/11/2017,Employee Related Expenditure,80231,Neighbourhoods
579.6,Driver Hire Nottingham,Neighbourhoods,Waste & Fleet Management,Waste Collection,8403,Agency Staff,10/11/2017,Employee Related Expenditure,80440,Neighbourhoods
5466,Blachere Illumination Uk Ltd,Transformation,Economic Regeneration,West Bridgford Town Centre,1875,Other Services,24/11/2017,Supplies & Services,80519,Transformation
1570,Patco Events Ltd,Transformation,Economic Regeneration,West Bridgford Town Centre,1875,Projects & Activities,12/12/2017,Supplies & Services,81500,Transformation
1285,Site Rescue (Leeds Office),Transformation,Economic Regeneration,West Bridgford Town Centre,1875,Projects & Activities,12/12/2017,Supplies & Services,81476,Transformation
1037.4,Traffic Management Svs Ltd,Transformation,Economic Regeneration,West Bridgford Town Centre,1875,Contractors-Third Party,21/12/2017,Third Party Payments,81422,Transformation
1000,1st Galaxy Fireworks Ltd,Transformation,Economic Regeneration,West Bridgford Town Centre,1875,Publicity & Promotion,21/12/2017,Supplies & Services,81664,Transformation
977.77,Flyinghire Limited,Transformation,Economic Regeneration,West Bridgford Town Centre,1875,Projects & Activities,12/12/2017,Supplies & Services,81479,Transformation
306,Crown Security Solutions Ltd,Transformation,Economic Regeneration,West Bridgford Town Centre,1875,Publicity & Promotion,21/12/2017,Supplies & Services,81515,Transformation
604.05,Maltby & Company,Communities,Community Development,West Park,8994,Planned Maintenance Recharge,05/10/2017,Supplies & Services,78621,Communities
460,Access Doors,Communities,Community Development,West Park,8994,Service Maintenance Contracts,11/10/2017,Premises Related Expenditure,78822,Communities
9055.89,Egbert H Taylor & Co Ltd,Capital Expenditure,Neighbourhoods,Wheeled Bins,310,Other Equipment/Materials,10/11/2017,Supplies & Services,80090,Capital Expenditure
1537,The Marquee Company Limited,Communities,Community Development,Young - European Project,1044,Projects & Activities,12/12/2017,Supplies & Services,81329,Communities
550,Nottinghamshire County Council,Communities,Community Development,Young - European Project,1044,Other Miscellaneous Expenses,11/10/2017,Supplies & Services,79467,Communities
306,Crown Security Solutions Ltd,Communities,Community Development,Young - European Project,1044,Projects & Activities,21/12/2017,Supplies & Services,81515,Communities
